Cogmind - Beta 13 @@@ ROGUE MODE // 2024.04.04 @ 16:20:32 Player: Tanker Result: Self-destructed Performance ------------- Evolutions (2) 1000 Regions Visited (3) 600 Robots Destroyed (33) 165 Value Destroyed (877) 877 Prototype IDs (0) 0 Alien Tech Used (0) 0 Bonus (8) 8 TOTAL SCORE: 2650 Bonus ------- High Alert Combat Kills 8 Cogmind --------- Core Integrity 405/550 Matter 181/300 Energy 273/275 System Corruption 5% Temperature Cool (2) Movement Flying (115) Ox1 Location -8/Materials Parts ------- > --- POWER (2) -------- Deuterium Engine > --- PROPULSION (3) --- Cesium-ion Thruster > --- UTILITY (4) ------ Improved Terrain Scanner Improved Targeting Computer Advanced Targeting Computer Advanced Targeting Computer > --- WEAPON (2) ------- (None) > --- INVENTORY (5) ---- Light Nuclear Core Compact Battery (200) Field Laser Flak Cannon Grenade Launcher Peak State ------------ > --- POWER ------------ Light Deuterium Engine Light Nuclear Core > --- PROPULSION ------- Cesium-ion Thruster Cesium-ion Thruster Cesium-ion Thruster > --- UTILITY ---------- High-capacity Storage Unit Improved Terrain Scanner Improved Targeting Computer Light Armor Plating > --- WEAPON ----------- Spread Laser Improved Grenade Launcher > --- INVENTORY -------- Ion Engine Improved Ion Engine Improved Ion Engine Deuterium Engine Light Treads VTOL Module Improved Heat Sink Small Storage Unit Large Storage Unit Small Battery Light Armor Plating Light Armor Plating Spread Laser Spread Laser Field Laser Assault Rifle Heavy Assault Rifle Heavy Assault Rifle Heavy Assault Rifle Flak Cannon [Rating: 30] Favorites ----------- Power Light Ion Engine Engine Light Ion Engine Power Core Light Nuclear Core Propulsion Light Treads Treads Light Treads Flight Unit Cesium-ion Thruster Utility High-capacity Storage Unit Device Improved Terrain Scanner Storage High-capacity Storage Unit Processor Improved Targeting Computer Protection Light Armor Plating Weapon Spread Laser Energy Gun Spread Laser Ballistic Gun Assault Rifle Ballistic Cannon Flak Cannon Launcher Grenade Launcher Impact Weapon Great Maul Build | -11 -10 -9 -8 ------- Run | Yrd Mat Mat Mat Slots Evolved 4 | . . 2 2 Power 1 | . . . 1 Propulsion 1 | . . 1 . Utility 2 | . . 1 1 Weapon . | . . . . Parts Attached 41 | 6 6 7 22 Power 8 | 1 1 1 5 Engine 6 | 1 1 . 4 Core 2 | . . 1 1 Reactor . | . . . . Propulsion 7 | 2 . 1 4 Treads 3 | 2 . 1 . Leg . | . . . . Wheel . | . . . . Hover . | . . . . Flight 4 | . . . 4 Utility 11 | 1 2 3 5 Device 1 | . . . 1 Storage 6 | 1 2 1 2 Processor 3 | . . 1 2 Hackware . | . . . . Protection 1 | . . 1 . Artifact . | . . . . Weapon 15 | 2 3 2 8 Energy Gun 4 | . . 1 3 Energy Cannon . | . . . . Ballistic Gun 5 | 2 2 1 . Ballistic Cannon 1 | . . . 1 Launcher 4 | . 1 . 3 Special Weapon . | . . . . Impact Weapon 1 | . . . 1 Slashing Weapon . | . . . . Piercing Weapon . | . . . . Special Melee Weapon . | . . . . Unidentified Prototypes . | . . . . Parts Lost 9 | . 3 . 6 Power 2 | . 1 . 1 Propulsion 4 | . . . 4 Utility . | . . . . Weapon 3 | . 2 . 1 Highest Loss Streak 2 | . 2 . 2 To Critical Strikes . | . . . . Average Slot Usage (%) 86 | . 88 85 86 Engine 9 | . 13 6 8 Core 3 | . . 4 4 Treads 22 | . 28 25 12 Flight 3 | . . . 13 Device 1 | . . . 6 Storage 15 | . 17 20 7 Processor 4 | . . 1 13 Protection 3 | . . 3 4 Energy Gun 6 | . . 10 7 Ballistic Gun 11 | . 17 11 4 Launcher 3 | . 9 . 2 Naked Turns . | . . . . Heaviest Build 63 | 12 28 55 63 Greatest Support 60 | 40 40 60 60 Greatest Overweight (x) 12 | . . 1 12 Average Overweight (x) . | . . . . Largest Inventory Capacity 20 | 8 15 20 20 Average Capacity 15 | 7 12 19 12 Most Carried 20 | 4 6 20 20 Average Carried 9 | 1 4 10 12 Final Capacity 20 | 8 15 20 5 Final Carried 19 | 2 4 19 5 Class Distribution -------------------- 74% | Mutant 15% | Sprinter 9% | Scavenger-Mutant Dominant Class ---------------- Mutant | -10/Materials Mutant | -9/Materials Sprinter | -8/Materials Resources | -11 -10 -9 -8 ----------- Run | Yrd Mat Mat Mat Matter Collected 758 | 182 143 221 212 Remotely . | . . . . Salvage Created 693 | . 151 411 131 Parts 53 | . 15 22 16 Haulers Intercepted . | . . . . Recyclers Shooed 3 | . . 2 1 Parts Field Recycled . | . . . . Retrieved Matter . | . . . . Parts Self-Destructed . | . . . . Prevented . | . . . . Kills | -11 -10 -9 -8 ------- Run | Yrd Mat Mat Mat Combat Hostiles Destroyed 27 | . 8 9 10 Guns 16 | . 4 9 3 AOE 11 | . 4 . 7 Classes Destroyed 6 | . 4 2 . Worker 3 | . 1 . 2 Recycler 1 | . . 1 . Watcher 2 | . 1 . 1 Swarmer 14 | . 6 . 8 Grunt 7 | . 2 4 1 Sentry 6 | . . 5 1 Best Kill Streak 7 | . 7 5 6 Combat Bots Only 5 | . 5 4 5 Max Kills in Single Turn 3 | . 3 2 2 Gunslinging 1 | . 1 . . Exploded 2 | . 2 . 2 Melee . | . . . . Uniques/NPCs Destroyed . | . . . . Combat | -11 -10 -9 -8 -------- Run | Yrd Mat Mat Mat Hostile Shots Fired 134 | . 24 33 77 Missed 55 | . 11 11 33 Damage Taken 1278 | . 362 295 621 Core 189 | . 20 24 145 Absorbed by Shields . | . . . . Core Remaining (%) 95 | 100 92 94 . Volleys Fired 64 | . 8 28 28 Largest 2 | . 2 2 2 Hottest 99 | . 50 88 99 Shots Fired 105 | . 14 56 35 Gun 93 | . 10 56 27 Cannon . | . . . . Launcher 12 | . 4 . 8 Special . | . . . . Kinetic 52 | . 10 28 14 Thermal 41 | . . 28 13 Explosive 12 | . 4 . 8 Electromagnetic . | . . . . Robot Hit Streak 10 | . 3 10 5 Robot Miss Streak 3 | . 1 3 3 Penetration Max . | . . . . Secondary Targets 2 | . 1 1 . Max Gunslinging Chain 1 | . 1 1 . Shots Hit Robots 67 | . 5 41 21 Core Hits 86 | . 17 42 27 Critical Kills . | . . . . Critical Parts Destroyed . | . . . . Critical Strikes . | . . . . Melee Attacks 5 | . . . 5 Impact 5 | . . . 5 Slashing . | . . . . Piercing . | . . . . Sneak Attacks . | . . . . Combat Hostiles . | . . . . Follow-up Attacks . | . . . . Damage Inflicted 2207 | . 404 619 1184 Guns 987 | . 57 619 311 Cannons . | . . . . Explosions 1220 | . 347 . 873 Melee . | . . . . Ramming . | . . . . Kinetic 484 | . 57 254 173 Thermal 731 | . . 365 366 Explosive 992 | . 347 . 645 Electromagnetic . | . . . . Impact . | . . . . Slashing . | . . . . Piercing . | . . . . Highest Corruption 7 | . 7 . . Average Corruption 7 | . 7 . . Corruption Purged . | . . . . Corruption Blocked . | . . . . Effects 7 | . 7 . . Message Errors 1 | . 1 . . Matter Fused 4 | . 4 . . Energy Discharges 1 | . 1 . . Data Loss (minor) 1 | . 1 . . Overload Shots . | . . . . Overflow Damage 119 | . 3 . 116 Projectiles . | . . . . Explosions 119 | . 3 . 116 Melee . | . . . . Knockbacks . | . . . . Impact . | . . . . Kinetic . | . . . . Secondary . | . . . . Self-Inflicted Damage 22 | . 22 . . Shots 1 | . 1 . . Rammed . | . . . . Targets Rammed . | . . . . Kicked . | . . . . Crushed . | . . . . Highest Temperature 247 | . 5 247 84 Average Temperature 61 | . 3 78 33 Received Heat Transfer 312 | . 66 120 126 Siege Activations . | . . . . Robots Corrupted . | . . . . Combat Hostiles . | . . . . Parts Fried . | . . . . Impact Corruptions . | . . . . Robots Melted . | . . . . Combat Hostiles . | . . . . Parts Melted . | . . . . Heat Transferred 850 | . . 455 395 Parts Sabotaged . | . . . . Parts Stolen . | . . . . Parts Stripped . | . . . . Power Chain Reactions . | . . . . Alert | -11 -10 -9 -8 ------- Run | Yrd Mat Mat Mat Peak Influence 978 | . 223 231 978 Initial 89 | . . 89 33 Average 141 | . 66 121 254 Maximum Alert Level 3 | . 1 1 3 Low Security (%) 77 | 100 73 84 67 Level 1 15 | . 26 15 7 Level 2 2 | . . . 9 Level 3 4 | . . . 16 Level 4 . | . . . . Level 5 . | . . . . High Security . | . . . . Max Security . | . . . . Squads Dispatched 7 | . . 2 5 Investigation . | . . . . Extermination . | . . . . Reinforcement 5 | . . 2 3 Assault 1 | . . . 1 Garrison 1 | . . . 1 Intercept . | . . . . Searches Triggered . | . . . . Construction Impeded . | . . . . Haulers Reinforced . | . . . . Active Scanning Responses . | . . . . Cargo Convoy Interrupts . | . . . . Stealth | -11 -10 -9 -8 --------- Run | Yrd Mat Mat Mat Distress Signals 11 | . 2 6 3 Communications Jammed . | . . . . Distress Signals . | . . . . Times Spotted 77 | . 13 19 45 Peak Tracking Total 15 | . 4 7 15 Tactical Retreats 7 | . . . 7 Traps | -11 -10 -9 -8 ------- Run | Yrd Mat Mat Mat Traps Triggered . | . . . . Indirectly . | . . . . Trap Hack Attempts . | . . . . Triggered . | . . . . Disarmed . | . . . . Reprogrammed . | . . . . Reused . | . . . . Traps Extracted . | . . . . Installed . | . . . . Triggered . | . . . . Machines | -11 -10 -9 -8 ---------- Run | Yrd Mat Mat Mat Machines Disabled 6 | . 1 1 4 Max in Single Turn 2 | . 1 1 2 Garrison Access 1 | . . . 1 Machines Repaired . | . . . . Machines Dismantled . | . . . . Machines Sabotaged . | . . . . Overloaded Fab Kills . | . . . . Hacking | -11 -10 -9 -8 --------- Run | Yrd Mat Mat Mat Machines Accessed . | . . . . Terminals . | . . . . Fabricators . | . . . . Repair Stations . | . . . . Recycling Units . | . . . . Scanalyzers . | . . . . Garrison Access . | . . . . Total Hacks . | . . . . Successful . | . . . . Failed . | . . . . Catastrophic . | . . . . Database Lockouts . | . . . . Manual . | . . . . Terminals . | . . . . Fabricators . | . . . . Repair Stations . | . . . . Recycling Units . | . . . . Scanalyzers . | . . . . Garrison Access . | . . . . Terminal Hacks . | . . . . Fabricator Hacks . | . . . . Repair Station Hacks . | . . . . Recycling Unit Hacks . | . . . . Scanalyzer . | . . . . Garrison Access Hacks . | . . . . Unauthorized Hacks . | . . . . Terminals . | . . . . Fabricators . | . . . . Repair Stations . | . . . . Recycling Units . | . . . . Scanalyzers . | . . . . Garrison Access . | . . . . Data Cores Recovered . | . . . . Used . | . . . . Hacking Detections . | . . . . Full Trace Events . | . . . . Feedback Events . | . . . . Feedback Blocked . | . . . . Robot Schematics Acquired . | . . . . Robots Built . | . . . . Authchips . | . . . . Time . | . . . . Total Robot Build Rating . | . . . . Part Schematics Acquired . | . . . . Parts Built . | . . . . Authchips . | . . . . Time . | . . . . Total Part Build Rating . | . . . . Parts Repaired . | . . . . Time . | . . . . Parts Recycled . | . . . . Recycled Matter . | . . . . Retrieved Matter . | . . . . Retrieved Components . | . . . . Parts Scanalyzed . | . . . . Part Schematics Acquired . | . . . . Parts Damaged . | . . . . Bothacking | -11 -10 -9 -8 ------------ Run | Yrd Mat Mat Mat Used RIF Installer . | . . . . Robots Hacked . | . . . . Non-combat . | . . . . Combat . | . . . . Robot Hacks Applied . | . . . . Relay Couplers Released 1 | . . . 1 Machine Destruction 1 | . . . 1 Fabnet Peak Effective % . | . . . . Robots Rewired . | . . . . Allies Hacked . | . . . . Hacks Repelled . | . . . . Allies | -11 -10 -9 -8 -------- Run | Yrd Mat Mat Mat Total Allies . | . . . . Largest Group . | . . . . Highest-Rated Group . | . . . . Highest-Rated Ally . | . . . . Total Orders . | . . . . Ally Attacks . | . . . . Total Damage . | . . . . Kills . | . . . . Allies Corrupted . | . . . . Allies Melted . | . . . . Intel | -11 -10 -9 -8 ------- Run | Yrd Mat Mat Mat Robot Analysis Total . | . . . . Derelict Logs Recovered . | . . . . Drone Launches . | . . . . Drone Recoveries . | . . . . Exploration | -11 -10 -9 -8 ------------- Run | Yrd Mat Mat Mat Turns Passed 2296 | 81 626 912 677 Spaces Moved 1792 | 53 370 406 963 Core 14 | 14 . . . Treads 969 | 39 370 406 154 Legs . | . . . . Wheels . | . . . . Hover . | . . . . Flight 809 | . . . 809 Fastest Speed 29 | 50 160 160 29 Average Speed 111 | 130 160 195 56 Slowest Speed 995 | 160 160 240 995 Overloaded Moves . | . . . . Propulsion Burnouts . | . . . . Robots Hopped 6 | . . . 6 Cave-ins Triggered 1 | . 1 . . Exploration Rate (%) 39 | 3 65 34 55 Regions Visited 3 Branch Regions . Pre-discovered Areas . | . . . . Known Exits Taken . | . . . . Unknown Exits Taken 3 | 1 1 1 . Scrap Searched . | . . . . Spaces Dug 5 | . . . 5 Terrain Destroyed 95 | . 24 . 71 Melee 5 | . . . 5 Projectile . | . . . . AOE 90 | . 24 . 66 Terrain Rammed . | . . . . Walls Destroyed . | . . . . Machines Disabled . | . . . . Actions | -11 -10 -9 -8 --------- Run | Yrd Mat Mat Mat Total 1975 | 64 389 470 1052 Wait 7 | . . 7 . Move 1778 | 52 369 405 952 Hop 5 | . . . 5 Pick Up 48 | 6 6 19 17 Fast Attach 10 | 2 . 2 6 Attach 13 | 4 4 . 5 Detach 3 | . . . 3 Swap 18 | . 2 5 11 Drop 24 | . . 4 20 Fire 64 | . 8 28 28 Melee 5 | . . . 5 Ram . | . . . . Kick . | . . . . Crush . | . . . . Escape Stasis . | . . . . Rewire . | . . . . Trap . | . . . . Miscellaneous . | . . . . Route ------- -11/Scrapyard -10/Materials (discovered 4 exits: [*Mat x2] / [*Min x2]) -9/Materials -8/Materials (discovered 1 exit: [*Fac]) History --------- Turn | Location | Event 8 | -11/Scrapyard | Discovered new exit (range 16) 82 | -11/Scrapyard | Entered Materials 243 | -10/Materials | Discovered new exit (range 13) 310 | -10/Materials | Build established: Mutant 372 | -10/Materials | Discovered new exit (range 12) 510 | -10/Materials | Discovered new exit (range 7) 535 | -10/Materials | Crushed by falling debris 600 | -10/Materials | Derelicts attacked the area 665 | -10/Materials | Discovered new exit (range 5) 708 | -10/Materials | Entered another Materials area 708 | -9/Materials | Evolved 2 slots: Propulsion x1, Utility x1 1485 | -9/Materials | Discovered new exit (range 13) 1620 | -9/Materials | Entered another Materials area 1620 | -8/Materials | Evolved 2 slots: Power x1, Utility x1 2071 | -8/Materials | Garrison activated, responded to threat 2235 | -8/Materials | Build established: Sprinter 2294 | -8/Materials | Discovered new exit (range 14) 2297 | -8/Materials | Self-destructed Last Messages --------------- 02178_ Acquired Adv. Targeting Computer. 02180_ Acquired Great Maul. 02187_ Material Compactor disabled. 02187_ K-01 Serf destroyed. 02213_ U-05 Engineer lays Concrete. 02216_ R-06 Scavenger collects Lgt. Assault Rifle. 02216_ U-05 Engineer builds a Wall. 02243_ W-25 Informer sends out distress signal. 02255_ K-01 Serf cleans the Material Processor. 02280_ Acquired 95 matter. 02284_ W-25 Informer sends out distress signal. 02293_ ALERT: Suspicious intruders detected, dispatching Cutter reinforcements to area. 02294_ EXIT=FOUND 02296_ Cesium-ion Thruster destroyed. 02296_ Dropped Great Maul. 02296_ Knocked back. 02297_ Cesium-ion Thruster destroyed. 02297_ System corrupted by crushing effect (+5). 02297_ Knocked back. Map ----- +----------------------------------------------------+ | ???? ??????????????????????# #????### ###### | | ????? ???????????????????????## #??????# # # | | ????????????????????#???????#?# ######## # [ # | | ???????????????########???????# + # | | ??????????????##! ######### ##### #### [ # | | ??????????????#! #??## ##?? # | | ??????????????#! #########+##### #??###### | | ??????????????#! #####??????# # #?? ???? | | ??????????????#! #??????????# # #?# ?? ? | | ??????????????##! #??????????# # #?# """ ? | | ???????????????####??????????# # #?# """ # | | ?????????????????????????????# # ### """ # | | ???????????????????########### # + # | | ???????????????????# ! ######## # """ # | | ???????????????????# =# ## # """ # | | ???????????????????# # # """ # | | ???????????????????# + + # | | ???????????????????# """ """ # # ! # | | ???????????????????# """ """ # #### # # | | ???????????????????# """ """ ## #####+####### | | ???????????????????# ## # ! #? | | ???????????????????#########"## # #? | | ???????????????????????????#### # #? | | ???????????????????????##?##### # """"" #? | | ??????????????????????## # ## # """"" #? | | ??????????????????????# [@!![[# # """"" #? | | ??????????????????????##[[!![[ #? | | ???????????????????????# ###+#######? | | ??????????????????????? / #??????????? | | ????????????????????# #????? | | ????????????????????+ Y #????? | | ????????????????????# c #????? | | ????????????????????###+#### ## ####cc #????? | | ??????????????????????????? #???# ##????? | | ??????????????????????????? #???? #?????? | | ??????????????????????????? #?????H #?????? | | ??????????????????????????? !!#?????< #?????? | | ??????????????????????????? ! #?????? #?????? | | ??????????????????????????? #?????????????? | | ???????????????????????????######?????????????? | | ??????????????????????????????????????????????? | | ??????????????????????????????????????????????? | | ??????????????????????????????????????????????? | | ??????????????????????????????????????????????? | | ??????????????????????????????????????????????? | | ??????????????????????????????????????????????? | | ??????????????????????????????????????????????? | | ??????????????????????????????????????????????? | | | | | +----------------------------------------------------+ Best States ------------- Heat Dissipation 31 Energy Generation 23 Energy Capacity 425 Matter Stores 300 Matter Capacity 300 Sight Range 16 Terrain Scan Range 16 Terrain Scan Density 10 Armor Coverage 150 Evasion (%) 64 Targeting Accuracy 22 Recoil Reduction 3 Item Schematics ----------------- None Robot Schematics ------------------ None Fabricated ------------ Nothing Alien Tech Used ----------------- None Achievements -------------- None Challenges ------------ None Game ------ Seed ActiveSkeletonFilter Manual? 0 Play Time 00:32:26 Cumulative 6.2 hours Start 2024.04.04 @ 15:48:14 End 2024.04.04 @ 16:20:32 Sessions 1 Manual Loads 0 Difficulty Rogue Special Mode None Game No. 10 Rogue 10 Adventurer 0 Explorer 0 Win Type - Total 0 Types 0/0/0/0/0/0/0/0/0 Lore% 3 Gallery% 12 Achievement% 11 Wizard Run 0 Options --------- Layout 0 ASCII 0 Keyboard 1 Movement Arrows Keybinds 0 Fullscreen 2 Font 18/SmallcapsGlow Map View 76x50 Zoom Use 0% Tactical HUD 1 Map Filters NONE Filters NONE Steam 1 RUN: 16bcbed4-cbd2-4cec-83c7-e2f1ba4069dc